[Event "*** SCC Grand Prix: Titled Tuesday Blitz"]
[Site "Chess.com"]
[Date "2020.06.02"]
[Round "8"]
[White "PowerThinking2650"]
[Black "kingmonkey2006"]
[Result "0-1"]
[WhiteElo "2283"]
[BlackElo "2514"]
[TimeControl "180+1"]
[EndTime "11:37:40 PDT"]
[Termination "kingmonkey2006 won on time"]

1. e4 {[%clk 0:03:00.9]} 1... c5 {[%clk 0:02:59]} 2. Nf3 {[%clk 0:03:01]} 2...
d6 {[%clk 0:02:59]} 3. Nc3 {[%clk 0:03:00.2]} 3... a6 {[%clk 0:02:59.7]} 4. a4
{[%clk 0:02:58.9]} 4... Nf6 {[%clk 0:03:00.3]} 5. g3 {[%clk 0:02:58.9]} 5... Nc6
{[%clk 0:02:58]} 6. Bg2 {[%clk 0:02:58.6]} 6... g6 {[%clk 0:02:58]} 7. O-O
{[%clk 0:02:58.3]} 7... Bg7 {[%clk 0:02:58.5]} 8. d3 {[%clk 0:02:57.7]} 8... O-O
{[%clk 0:02:58.6]} 9. h3 {[%clk 0:02:57.8]} 9... Rb8 {[%clk 0:02:56.6]} 10. Be3
{[%clk 0:02:57.7]} 10... b5 {[%clk 0:02:56.5]} 11. axb5 {[%clk 0:02:58.6]} 11...
axb5 {[%clk 0:02:57.4]} 12. Qd2 {[%clk 0:02:58.7]} 12... b4 {[%clk 0:02:56.6]}
13. Nd1 {[%clk 0:02:58.7]} 13... Bb7 {[%clk 0:02:57.3]} 14. Bh6 {[%clk
0:02:57.9]} 14... Qc7 {[%clk 0:02:30.8]} 15. Bxg7 {[%clk 0:02:56.2]} 15... Kxg7
{[%clk 0:02:30.4]} 16. Ne3 {[%clk 0:02:56.2]} 16... Ra8 {[%clk 0:02:30.7]} 17.
Rab1 {[%clk 0:02:55.4]} 17... Ra2 {[%clk 0:02:27]} 18. Nh4 {[%clk 0:02:45.8]}
18... e6 {[%clk 0:02:21.2]} 19. f4 {[%clk 0:02:32.3]} 19... Nd4 {[%clk
0:02:20.7]} 20. f5 {[%clk 0:02:19.3]} 20... exf5 {[%clk 0:02:11.9]} 21. Nexf5+
{[%clk 0:02:10.5]} 21... Nxf5 {[%clk 0:01:55.3]} 22. Nxf5+ {[%clk 0:02:09.7]}
22... Kh8 {[%clk 0:01:55.7]} 23. Qh6 {[%clk 0:01:16.8]} 23... Rg8 {[%clk
0:01:53.4]} 24. Ne3 {[%clk 0:01:04.9]} 24... Qe7 {[%clk 0:01:46.4]} 25. Rf2
{[%clk 0:00:44.3]} 25... Ne8 {[%clk 0:01:30]} 26. Rbf1 {[%clk 0:00:35.5]} 26...
Rg7 {[%clk 0:01:16.9]} 27. Nc4 {[%clk 0:00:25.6]} 27... Ba6 {[%clk 0:01:07.6]}
28. e5 {[%clk 0:00:19.9]} 28... Bxc4 {[%clk 0:00:59.1]} 29. exd6 {[%clk
0:00:18.8]} 29... Nxd6 {[%clk 0:00:57.3]} 30. dxc4 {[%clk 0:00:18.3]} 30... f5
{[%clk 0:00:38.4]} 31. Bd5 {[%clk 0:00:16.6]} 31... Ne4 {[%clk 0:00:36]} 32. Qf4
{[%clk 0:00:11.2]} 32... Nd6 {[%clk 0:00:23.4]} 33. Re2 {[%clk 0:00:03.4]} 33...
Qxe2 {[%clk 0:00:21.7]} 34. Qxd6 {[%clk 0:00:03.5]} 34... Qe8 {[%clk 0:00:19.3]}
35. Qxc5 {[%clk 0:00:03]} 35... Raa7 {[%clk 0:00:18.5]} 36. Qxb4 {[%clk
0:00:02.7]} 36... Qe3+ {[%clk 0:00:18.3]} 37. Kg2 {[%clk 0:00:02.5]} 37... h6
{[%clk 0:00:19.2]} 38. Qc3 {[%clk 0:00:02.7]} 38... Qxc3 {[%clk 0:00:18.7]} 39.
bxc3 {[%clk 0:00:03.6]} 39... Ra2 {[%clk 0:00:19.6]} 40. Rf2 {[%clk 0:00:04.1]}
40... Re7 {[%clk 0:00:19]} 41. c5 {[%clk 0:00:04.2]} 41... Ra5 {[%clk
0:00:19.2]} 42. c4 {[%clk 0:00:03.7]} 42... Rxc5 {[%clk 0:00:19.5]} 43. h4
{[%clk 0:00:04.1]} 43... Kg7 {[%clk 0:00:19.8]} 44. Kf3 {[%clk 0:00:04.3]} 44...
Kf6 {[%clk 0:00:20]} 45. Rd2 {[%clk 0:00:04.4]} 45... Re1 {[%clk 0:00:19]} 46.
Rd3 {[%clk 0:00:04.2]} 46... Rc7 {[%clk 0:00:18.9]} 47. Re3 {[%clk 0:00:04.3]}
47... Rxe3+ {[%clk 0:00:19]} 48. Kxe3 {[%clk 0:00:05.2]} 48... Ke5 {[%clk
0:00:19.9]} 49. Kf3 {[%clk 0:00:04.6]} 49... g5 {[%clk 0:00:20.4]} 50. hxg5
{[%clk 0:00:04.7]} 50... hxg5 {[%clk 0:00:21.3]} 51. g4 {[%clk 0:00:04.6]} 51...
f4 {[%clk 0:00:21.6]} 52. c3 {[%clk 0:00:04.3]} 52... Rh7 {[%clk 0:00:21.1]} 53.
Kg2 {[%clk 0:00:03.6]} 53... Rh4 {[%clk 0:00:21.6]} 54. Bf3 {[%clk 0:00:03.2]}
54... Kd6 {[%clk 0:00:20]} 55. Be2 {[%clk 0:00:02]} 55... Kc5 {[%clk 0:00:20.9]}
56. Kf3 {[%clk 0:00:02.3]} 56... Rh3+ {[%clk 0:00:20.8]} 57. Kf2 {[%clk
0:00:02.1]} 57... Re3 {[%clk 0:00:19.8]} 58. Bf3 {[%clk 0:00:01.2]} 58... Kxc4
{[%clk 0:00:20]} 0-1

[Event "*** SCC Grand Prix: Titled Tuesday Blitz"]
[Site "Chess.com"]
[Date "2020.06.02"]
[Round "8"]
[White "pavelalexandru07"]
[Black "ChessBitl"]
[Result "0-1"]
[WhiteElo "2124"]
[BlackElo "2331"]
[TimeControl "180+1"]
[EndTime "11:37:41 PDT"]
[Termination "ChessBitl won on time"]

1. e4 {[%clk 0:03:00.9]} 1... c5 {[%clk 0:02:59.9]} 2. Nf3 {[%clk 0:03:00.4]}
2... Nc6 {[%clk 0:03:00.4]} 3. d4 {[%clk 0:03:00.5]} 3... cxd4 {[%clk
0:03:00.8]} 4. Nxd4 {[%clk 0:03:00.8]} 4... g6 {[%clk 0:03:01.3]} 5. c4 {[%clk
0:03:00.4]} 5... Nf6 {[%clk 0:02:57.6]} 6. Nc3 {[%clk 0:02:59.9]} 6... d6 {[%clk
0:02:57.8]} 7. Be2 {[%clk 0:02:59.3]} 7... Nxd4 {[%clk 0:02:57.9]} 8. Qxd4
{[%clk 0:02:58.8]} 8... Bg7 {[%clk 0:02:58.5]} 9. Be3 {[%clk 0:02:58.5]} 9...
O-O {[%clk 0:02:58.5]} 10. Qd2 {[%clk 0:02:58.3]} 10... Be6 {[%clk 0:02:59]} 11.
O-O {[%clk 0:02:57.7]} 11... Qa5 {[%clk 0:02:59.5]} 12. f3 {[%clk 0:02:44.7]}
12... a6 {[%clk 0:02:59.5]} 13. Rab1 {[%clk 0:02:26.8]} 13... Rfc8 {[%clk
0:02:57.8]} 14. b4 {[%clk 0:02:09.7]} 14... Qd8 {[%clk 0:02:42.9]} 15. Nd5
{[%clk 0:02:07.8]} 15... Nxd5 {[%clk 0:02:33]} 16. cxd5 {[%clk 0:01:57.4]} 16...
Bd7 {[%clk 0:02:33.2]} 17. Rfc1 {[%clk 0:01:55.9]} 17... Bb5 {[%clk 0:02:30.7]}
18. Bf1 {[%clk 0:01:36.5]} 18... Qd7 {[%clk 0:02:28]} 19. Bd4 {[%clk 0:01:18.2]}
19... Bxf1 {[%clk 0:02:16.4]} 20. Kxf1 {[%clk 0:01:14.5]} 20... Qb5+ {[%clk
0:02:16.8]} 21. Kg1 {[%clk 0:01:00.9]} 21... Bxd4+ {[%clk 0:02:05.2]} 22. Qxd4
{[%clk 0:01:01.8]} 22... Qa4 {[%clk 0:02:05.7]} 23. Qb2 {[%clk 0:00:51.5]} 23...
h5 {[%clk 0:02:03.2]} 24. Qd2 {[%clk 0:00:47.9]} 24... Kg7 {[%clk 0:01:59.1]}
25. Qb2+ {[%clk 0:00:47.1]} 25... Kh7 {[%clk 0:01:55.4]} 26. Qd2 {[%clk
0:00:45.7]} 26... b5 {[%clk 0:01:45.4]} 27. Rxc8 {[%clk 0:00:17.7]} 27... Rxc8
{[%clk 0:01:44.2]} 28. Rb3 {[%clk 0:00:18.1]} 28... Rc4 {[%clk 0:01:29.1]} 29.
h3 {[%clk 0:00:13.6]} 29... h4 {[%clk 0:01:20.7]} 30. Kh2 {[%clk 0:00:13.4]}
30... Kg7 {[%clk 0:01:18.5]} 31. Qb2+ {[%clk 0:00:12.9]} 31... f6 {[%clk
0:01:16.9]} 32. Qd2 {[%clk 0:00:12.2]} 32... g5 {[%clk 0:01:15.5]} 33. Qb2
{[%clk 0:00:11.6]} 33... Kg6 {[%clk 0:01:08.5]} 34. Qd2 {[%clk 0:00:11.1]} 34...
a5 {[%clk 0:00:58.5]} 35. bxa5 {[%clk 0:00:09.9]} 35... b4 {[%clk 0:00:59]} 36.
a6 {[%clk 0:00:06.7]} 36... Qxa6 {[%clk 0:00:55.1]} 37. Rxb4 {[%clk 0:00:06.7]}
37... Qa5 {[%clk 0:00:55.6]} 38. a3 {[%clk 0:00:07]} 38... Rc7 {[%clk
0:00:51.1]} 39. Qb2 {[%clk 0:00:05.5]} 39... Ra7 {[%clk 0:00:50.4]} 40. a4
{[%clk 0:00:03.8]} 40... Qc5 {[%clk 0:00:46.4]} 41. Qd4 {[%clk 0:00:03.6]} 41...
Kf7 {[%clk 0:00:35.6]} 42. Qxc5 {[%clk 0:00:02.5]} 42... dxc5 {[%clk 0:00:36.2]}
43. Rc4 {[%clk 0:00:02.8]} 43... Ra5 {[%clk 0:00:36.4]} 44. Kg1 {[%clk
0:00:02.6]} 44... Ke8 {[%clk 0:00:37.1]} 45. Kf2 {[%clk 0:00:03]} 45... Kd7
{[%clk 0:00:37.7]} 46. Ke3 {[%clk 0:00:03.4]} 46... Kd6 {[%clk 0:00:37.8]} 47.
Kd3 {[%clk 0:00:03.9]} 47... Ra8 {[%clk 0:00:35.4]} 48. Kc3 {[%clk 0:00:04.2]}
48... Rb8 {[%clk 0:00:35.6]} 49. Kc2 {[%clk 0:00:04.3]} 49... Ra8 {[%clk
0:00:33.4]} 50. Kc3 {[%clk 0:00:04.1]} 50... Ra5 {[%clk 0:00:33.2]} 51. Kc2
{[%clk 0:00:04]} 51... Ke5 {[%clk 0:00:33.6]} 52. Kd3 {[%clk 0:00:03.8]} 52...
Kf4 {[%clk 0:00:32.9]} 53. Ke2 {[%clk 0:00:04]} 53... Kg3 {[%clk 0:00:27.8]} 54.
Kf1 {[%clk 0:00:04]} 54... Kf4 {[%clk 0:00:28.1]} 55. Kf2 {[%clk 0:00:03.3]}
55... Ke5 {[%clk 0:00:28.2]} 56. Ke3 {[%clk 0:00:03.2]} 56... e6 {[%clk
0:00:26.1]} 57. dxe6 {[%clk 0:00:02.9]} 57... Kxe6 {[%clk 0:00:26.7]} 58. Kd3
{[%clk 0:00:02.9]} 58... Kd6 {[%clk 0:00:26.9]} 59. Kc3 {[%clk 0:00:03]} 59...
Kc6 {[%clk 0:00:26.5]} 60. Kd3 {[%clk 0:00:03]} 60... Ra8 {[%clk 0:00:26.6]} 61.
Kc3 {[%clk 0:00:02.2]} 61... Rd8 {[%clk 0:00:27]} 62. a5 {[%clk 0:00:01.9]}
62... Rd1 {[%clk 0:00:26.6]} 63. Kc2 {[%clk 0:00:01.5]} 63... Ra1 {[%clk
0:00:26.3]} 0-1

[Event "*** SCC Grand Prix: Titled Tuesday Blitz"]
[Site "Chess.com"]
[Date "2020.06.02"]
[Round "8"]
[White "Skatchkov_V"]
[Black "KNVB"]
[Result "1/2-1/2"]
[WhiteElo "2561"]
[BlackElo "2684"]
[TimeControl "180+1"]
[EndTime "11:37:42 PDT"]
[Termination "Game drawn by stalemate"]

1. Nf3 {[%clk 0:03:00.9]} 1... d5 {[%clk 0:02:58.5]} 2. d4 {[%clk 0:02:59.2]}
2... c6 {[%clk 0:02:59.4]} 3. c4 {[%clk 0:02:58.8]} 3... Nf6 {[%clk 0:02:56.9]}
4. Nc3 {[%clk 0:02:58.6]} 4... Bg4 {[%clk 0:02:56.4]} 5. cxd5 {[%clk 0:02:57.1]}
5... Bxf3 {[%clk 0:02:55.8]} 6. exf3 {[%clk 0:02:50.6]} 6... Nxd5 {[%clk
0:02:48.3]} 7. Be2 {[%clk 0:02:47.9]} 7... e6 {[%clk 0:02:46.2]} 8. O-O {[%clk
0:02:47.4]} 8... Nd7 {[%clk 0:02:46.7]} 9. Qc2 {[%clk 0:02:37.2]} 9... Be7
{[%clk 0:02:44.5]} 10. Be3 {[%clk 0:02:26.2]} 10... O-O {[%clk 0:02:37.2]} 11.
Rad1 {[%clk 0:02:16.6]} 11... Re8 {[%clk 0:02:31.1]} 12. a3 {[%clk 0:02:07.8]}
12... g6 {[%clk 0:02:14.3]} 13. Rfe1 {[%clk 0:01:57.5]} 13... Rc8 {[%clk
0:02:09.8]} 14. Ne4 {[%clk 0:01:41.5]} 14... Qc7 {[%clk 0:02:04]} 15. Bh6 {[%clk
0:01:32.2]} 15... Rcd8 {[%clk 0:01:58.8]} 16. Bc4 {[%clk 0:01:12.8]} 16... Qb8
{[%clk 0:01:56.2]} 17. Bxd5 {[%clk 0:01:10]} 17... exd5 {[%clk 0:01:45.1]} 18.
Ng3 {[%clk 0:01:04.1]} 18... Bf6 {[%clk 0:01:28.1]} 19. Qd2 {[%clk 0:00:57.8]}
19... Rxe1+ {[%clk 0:01:21]} 20. Rxe1 {[%clk 0:00:58.7]} 20... Re8 {[%clk
0:01:21.9]} 21. Re3 {[%clk 0:00:46.5]} 21... Nf8 {[%clk 0:01:16.2]} 22. Rxe8
{[%clk 0:00:21]} 22... Qxe8 {[%clk 0:01:17.1]} 23. Qb4 {[%clk 0:00:20.8]} 23...
Qe7 {[%clk 0:01:13]} 24. Qd2 {[%clk 0:00:19.4]} 24... Ne6 {[%clk 0:00:58]} 25.
Be3 {[%clk 0:00:19.3]} 25... Qd8 {[%clk 0:00:21.9]} 26. Ne2 {[%clk 0:00:16.8]}
26... Qb6 {[%clk 0:00:20.3]} 27. Nc3 {[%clk 0:00:16.1]} 27... Bxd4 {[%clk
0:00:16.3]} 28. Na4 {[%clk 0:00:16.1]} 28... Bxe3 {[%clk 0:00:16]} 29. fxe3
{[%clk 0:00:17]} 29... Qb3 {[%clk 0:00:13.3]} 30. Nc3 {[%clk 0:00:17.2]} 30...
Qc4 {[%clk 0:00:13.4]} 31. Kf2 {[%clk 0:00:16.5]} 31... h5 {[%clk 0:00:11.5]}
32. e4 {[%clk 0:00:15.4]} 32... d4 {[%clk 0:00:11]} 33. Ne2 {[%clk 0:00:15.1]}
33... c5 {[%clk 0:00:10.1]} 34. b4 {[%clk 0:00:14.9]} 34... b6 {[%clk
0:00:06.4]} 35. Nf4 {[%clk 0:00:13.9]} 35... Nxf4 {[%clk 0:00:05]} 36. Qxf4
{[%clk 0:00:14.8]} 36... d3 {[%clk 0:00:03.3]} 37. Qb8+ {[%clk 0:00:11.7]} 37...
Kh7 {[%clk 0:00:02.9]} 38. Qd6 {[%clk 0:00:11.2]} 38... Qc2+ {[%clk 0:00:01.9]}
39. Ke3 {[%clk 0:00:11.3]} 39... Qc4 {[%clk 0:00:01.4]} 40. Qxd3 {[%clk
0:00:10]} 40... Qxd3+ {[%clk 0:00:02.3]} 41. Kxd3 {[%clk 0:00:10.9]} 41... cxb4
{[%clk 0:00:02.4]} 42. axb4 {[%clk 0:00:11.1]} 42... a6 {[%clk 0:00:02.3]} 43.
Kc4 {[%clk 0:00:11.2]} 43... Kg7 {[%clk 0:00:02.3]} 44. Kd5 {[%clk 0:00:11.4]}
44... Kf6 {[%clk 0:00:03]} 45. Kc6 {[%clk 0:00:11.3]} 45... a5 {[%clk
0:00:03.7]} 46. bxa5 {[%clk 0:00:09.8]} 46... bxa5 {[%clk 0:00:04.6]} 47. Kb5
{[%clk 0:00:09.2]} 47... Ke5 {[%clk 0:00:05.3]} 48. Kxa5 {[%clk 0:00:09]} 48...
Kd4 {[%clk 0:00:04.1]} 49. Kb5 {[%clk 0:00:09.6]} 49... Ke3 {[%clk 0:00:02.9]}
50. Kc5 {[%clk 0:00:08.2]} 50... Kf2 {[%clk 0:00:03.4]} 51. Kd6 {[%clk
0:00:06.2]} 51... Kxg2 {[%clk 0:00:03.9]} 52. Ke7 {[%clk 0:00:06.4]} 52... Kxf3
{[%clk 0:00:03.4]} 53. Kxf7 {[%clk 0:00:07.3]} 53... Kxe4 {[%clk 0:00:03.1]} 54.
Kxg6 {[%clk 0:00:07.8]} 54... h4 {[%clk 0:00:03.6]} 55. Kg5 {[%clk 0:00:07.8]}
55... h3 {[%clk 0:00:03.9]} 56. Kg4 {[%clk 0:00:08.2]} 56... Ke5 {[%clk
0:00:04.2]} 57. Kxh3 {[%clk 0:00:08.7]} 57... Kf5 {[%clk 0:00:05.1]} 58. Kg3
{[%clk 0:00:09.5]} 58... Kg6 {[%clk 0:00:06]} 59. h4 {[%clk 0:00:10.2]} 59...
Kg7 {[%clk 0:00:06.9]} 60. Kg4 {[%clk 0:00:10.7]} 60... Kh8 {[%clk 0:00:07.8]}
61. h5 {[%clk 0:00:11.1]} 61... Kg8 {[%clk 0:00:08.7]} 62. Kg5 {[%clk 0:00:12]}
62... Kh8 {[%clk 0:00:09.6]} 63. h6 {[%clk 0:00:12.2]} 63... Kg8 {[%clk
0:00:10.5]} 64. Kg6 {[%clk 0:00:13.1]} 64... Kh8 {[%clk 0:00:11.4]} 65. h7
{[%clk 0:00:14]} 1/2-1/2

[Event "*** SCC Grand Prix: Titled Tuesday Blitz"]
[Site "Chess.com"]
[Date "2020.06.02"]
[Round "8"]
[White "woodhy"]
[Black "albi1999"]
[Result "0-1"]
[WhiteElo "2460"]
[BlackElo "2646"]
[TimeControl "180+1"]
[EndTime "11:37:42 PDT"]
[Termination "albi1999 won by resignation"]

1. e4 {[%clk 0:03:00.9]} 1... e5 {[%clk 0:02:57.1]} 2. Nf3 {[%clk 0:03:00.7]}
2... Nc6 {[%clk 0:02:56.9]} 3. Bb5 {[%clk 0:03:00.4]} 3... a6 {[%clk 0:02:57.5]}
4. Bxc6 {[%clk 0:02:58.8]} 4... dxc6 {[%clk 0:02:58.4]} 5. O-O {[%clk
0:02:59.1]} 5... Ne7 {[%clk 0:02:53.3]} 6. c3 {[%clk 0:02:56.9]} 6... Ng6 {[%clk
0:02:52.2]} 7. d4 {[%clk 0:02:55.9]} 7... Bd6 {[%clk 0:02:52.7]} 8. Re1 {[%clk
0:02:52.9]} 8... O-O {[%clk 0:02:52.2]} 9. Nbd2 {[%clk 0:02:51.3]} 9... Re8
{[%clk 0:02:52.3]} 10. Nf1 {[%clk 0:02:50.3]} 10... b5 {[%clk 0:02:43.5]} 11.
Ng3 {[%clk 0:02:49.8]} 11... c5 {[%clk 0:02:40.1]} 12. Be3 {[%clk 0:02:33.5]}
12... cxd4 {[%clk 0:02:37.6]} 13. cxd4 {[%clk 0:02:34.4]} 13... Bg4 {[%clk
0:02:34.8]} 14. Nf5 {[%clk 0:02:07.2]} 14... exd4 {[%clk 0:02:16]} 15. Bxd4
{[%clk 0:01:41.8]} 15... Ne5 {[%clk 0:01:57.3]} 16. Bxe5 {[%clk 0:01:27.1]}
16... Bxf3 {[%clk 0:01:49.1]} 17. Qxf3 {[%clk 0:01:13.4]} 17... Bxe5 {[%clk
0:01:49.4]} 18. Rad1 {[%clk 0:01:13]} 18... Qf6 {[%clk 0:01:47.5]} 19. b3 {[%clk
0:01:13.3]} 19... Rad8 {[%clk 0:01:43.9]} 20. g3 {[%clk 0:01:11.8]} 20... g6
{[%clk 0:01:43.1]} 21. Nh6+ {[%clk 0:01:07.6]} 21... Kg7 {[%clk 0:01:43]} 22.
Qe3 {[%clk 0:00:47.6]} 22... Bd4 {[%clk 0:01:37]} 23. Ng4 {[%clk 0:00:21]} 23...
Bxe3 {[%clk 0:01:32.1]} 24. Nxf6 {[%clk 0:00:17.5]} 24... Bxf2+ {[%clk
0:01:32.3]} 25. Kxf2 {[%clk 0:00:18.4]} 25... Kxf6 {[%clk 0:01:32.1]} 26. Ke3
{[%clk 0:00:18.7]} 26... Ke6 {[%clk 0:01:25.4]} 27. Rc1 {[%clk 0:00:17.6]} 27...
Kd7 {[%clk 0:01:19.2]} 28. Rf1 {[%clk 0:00:16]} 28... f5 {[%clk 0:01:17.3]} 29.
Rf4 {[%clk 0:00:14.8]} 29... c6 {[%clk 0:01:15.3]} 30. Kf3 {[%clk 0:00:13.9]}
30... fxe4+ {[%clk 0:01:14.4]} 31. Rxe4 {[%clk 0:00:14.8]} 31... Rxe4 {[%clk
0:01:14.5]} 32. Kxe4 {[%clk 0:00:15.7]} 32... Re8+ {[%clk 0:01:13.9]} 33. Kd3
{[%clk 0:00:15.8]} 33... Kd6 {[%clk 0:01:12.1]} 34. Rf1 {[%clk 0:00:15.7]} 34...
c5 {[%clk 0:01:05.7]} 35. Rf6+ {[%clk 0:00:15.3]} 35... Re6 {[%clk 0:01:05.7]}
36. Rf7 {[%clk 0:00:15.8]} 36... h5 {[%clk 0:01:05.8]} 37. Ra7 {[%clk
0:00:15.3]} 37... Kd5 {[%clk 0:01:05.5]} 38. Rd7+ {[%clk 0:00:15.1]} 38... Rd6
{[%clk 0:01:05.8]} 39. Re7 {[%clk 0:00:13.1]} 39... Rf6 {[%clk 0:01:00.2]} 40.
Rd7+ {[%clk 0:00:10.3]} 40... Kc6 {[%clk 0:01:00.1]} 41. Ra7 {[%clk 0:00:11.2]}
41... Kb6 {[%clk 0:01:00]} 42. Rd7 {[%clk 0:00:09.6]} 42... Rc6 {[%clk
0:00:56.2]} 43. Kc3 {[%clk 0:00:08]} 43... c4 {[%clk 0:00:55.6]} 44. Rg7 {[%clk
0:00:07.5]} 44... a5 {[%clk 0:00:53.9]} 45. bxc4 {[%clk 0:00:07.8]} 45... Rxc4+
{[%clk 0:00:53.4]} 46. Kb3 {[%clk 0:00:08.7]} 46... Rc6 {[%clk 0:00:54.3]} 47.
a4 {[%clk 0:00:08.4]} 47... bxa4+ {[%clk 0:00:46.9]} 48. Kxa4 {[%clk 0:00:08.2]}
48... Rc4+ {[%clk 0:00:47.4]} 49. Kb3 {[%clk 0:00:08.2]} 49... Rg4 {[%clk
0:00:47.8]} 50. Ka3 {[%clk 0:00:07.9]} 50... Kc5 {[%clk 0:00:45.5]} 51. Rd7
{[%clk 0:00:07.7]} 51... Kc6 {[%clk 0:00:44.3]} 52. Ra7 {[%clk 0:00:07.2]} 52...
a4 {[%clk 0:00:42.7]} 53. Ra5 {[%clk 0:00:06.6]} 53... Kd6 {[%clk 0:00:41.9]}
54. Rb5 {[%clk 0:00:03.8]} 54... Ke6 {[%clk 0:00:41.8]} 55. Ra5 {[%clk
0:00:04.2]} 55... Kf6 {[%clk 0:00:42]} 56. Rb5 {[%clk 0:00:04.5]} 56... Kg7
{[%clk 0:00:41.9]} 57. Rb7+ {[%clk 0:00:04.6]} 57... Kh6 {[%clk 0:00:42.1]} 58.
Rb5 {[%clk 0:00:05.5]} 58... Rd4 {[%clk 0:00:40.8]} 59. Ra5 {[%clk 0:00:05.4]}
59... Kg7 {[%clk 0:00:40.6]} 60. Ra7+ {[%clk 0:00:05.2]} 60... Kf6 {[%clk
0:00:40.8]} 61. Ra5 {[%clk 0:00:06.1]} 61... Ke6 {[%clk 0:00:36.9]} 62. Ra6+
{[%clk 0:00:06]} 62... Kf5 {[%clk 0:00:36.6]} 63. h3 {[%clk 0:00:06.1]} 63...
Rd3+ {[%clk 0:00:34.7]} 64. Kxa4 {[%clk 0:00:06.4]} 64... Rxg3 {[%clk
0:00:35.6]} 65. Ra5+ {[%clk 0:00:06.1]} 65... Kf4 {[%clk 0:00:35.6]} 66. Ra6
{[%clk 0:00:05.9]} 66... g5 {[%clk 0:00:35.4]} 67. Rf6+ {[%clk 0:00:05.3]} 67...
Ke3 {[%clk 0:00:35.4]} 68. h4 {[%clk 0:00:05.1]} 68... gxh4 {[%clk 0:00:34.3]}
69. Rf5 {[%clk 0:00:04.8]} 69... h3 {[%clk 0:00:31.9]} 70. Rxh5 {[%clk
0:00:05.7]} 70... Kf2 {[%clk 0:00:32.3]} 71. Kb4 {[%clk 0:00:04.9]} 71... Kg2
{[%clk 0:00:32.5]} 0-1

[Event "*** SCC Grand Prix: Titled Tuesday Blitz"]
[Site "Chess.com"]
[Date "2020.06.02"]
[Round "8"]
[White "Natalya_Buksa"]
[Black "RobPeresian"]
[Result "1-0"]
[WhiteElo "2563"]
[BlackElo "2377"]
[TimeControl "180+1"]
[EndTime "11:37:46 PDT"]
[Termination "Natalya_Buksa won by resignation"]

1. d4 {[%clk 0:01:44.9]} 1... d5 {[%clk 0:02:59.7]} 2. Nc3 {[%clk 0:01:44.3]}
2... c6 {[%clk 0:03:00.1]} 3. Bf4 {[%clk 0:01:44.5]} 3... Nf6 {[%clk 0:02:59.7]}
4. e3 {[%clk 0:01:45.1]} 4... g6 {[%clk 0:02:57]} 5. h4 {[%clk 0:01:44.2]} 5...
h6 {[%clk 0:02:55.9]} 6. Nf3 {[%clk 0:01:43.5]} 6... Bg7 {[%clk 0:02:55.8]} 7.
Be2 {[%clk 0:01:42.8]} 7... Nbd7 {[%clk 0:02:55.7]} 8. Ne5 {[%clk 0:01:42.8]}
8... Nf8 {[%clk 0:02:45]} 9. Qd2 {[%clk 0:01:41.9]} 9... a5 {[%clk 0:02:41.7]}
10. Na4 {[%clk 0:01:37.6]} 10... N6d7 {[%clk 0:02:39.6]} 11. Nxd7 {[%clk
0:01:35.4]} 11... Nxd7 {[%clk 0:02:38.4]} 12. Bd3 {[%clk 0:01:35.1]} 12... e5
{[%clk 0:02:31.6]} 13. dxe5 {[%clk 0:01:34.5]} 13... Nxe5 {[%clk 0:02:31.9]} 14.
Nc3 {[%clk 0:01:34.5]} 14... Nxd3+ {[%clk 0:02:30.1]} 15. Qxd3 {[%clk
0:01:34.5]} 15... Qe7 {[%clk 0:02:29.1]} 16. O-O-O {[%clk 0:01:33.9]} 16... Bf5
{[%clk 0:02:28.1]} 17. Qd2 {[%clk 0:01:33.3]} 17... a4 {[%clk 0:02:27.1]} 18. a3
{[%clk 0:01:31.7]} 18... b5 {[%clk 0:02:26]} 19. Na2 {[%clk 0:01:29.8]} 19...
Qf6 {[%clk 0:02:22.3]} 20. c3 {[%clk 0:01:28.3]} 20... O-O {[%clk 0:02:17.8]}
21. Nb4 {[%clk 0:01:26.3]} 21... Qe6 {[%clk 0:02:12.3]} 22. f3 {[%clk
0:01:24.7]} 22... Qd7 {[%clk 0:01:52.1]} 23. e4 {[%clk 0:01:23.9]} 23... Be6
{[%clk 0:01:51.7]} 24. exd5 {[%clk 0:01:21.2]} 24... cxd5 {[%clk 0:01:52]} 25.
Bxh6 {[%clk 0:01:19.2]} 25... Rac8 {[%clk 0:01:33]} 26. h5 {[%clk 0:01:10.3]}
26... f5 {[%clk 0:01:15.7]} 27. hxg6 {[%clk 0:01:05]} 27... f4 {[%clk
0:01:04.8]} 28. Bxg7 {[%clk 0:01:04.1]} 28... Qxg7 {[%clk 0:01:04.2]} 29. Qd4
{[%clk 0:01:00.2]} 29... Qxg6 {[%clk 0:01:03.9]} 30. Rde1 {[%clk 0:00:51.9]}
30... Kf7 {[%clk 0:00:58.7]} 31. Qxf4+ {[%clk 0:00:43.8]} 31... Qf5 {[%clk
0:00:54.8]} 32. Qxf5+ {[%clk 0:00:41]} 32... Bxf5 {[%clk 0:00:55]} 33. Nxd5
{[%clk 0:00:40.5]} 33... Rh8 {[%clk 0:00:51.7]} 34. Rxh8 {[%clk 0:00:31.2]}
34... Rxh8 {[%clk 0:00:52.6]} 35. g4 {[%clk 0:00:31.7]} 35... Bd3 {[%clk
0:00:50.8]} 36. Nb4 {[%clk 0:00:29.3]} 36... Bc4 {[%clk 0:00:49.2]} 37. Nc6
{[%clk 0:00:29.2]} 37... Bb3 {[%clk 0:00:44.3]} 38. Re2 {[%clk 0:00:29.3]} 38...
Rh3 {[%clk 0:00:39.7]} 39. Kd2 {[%clk 0:00:25.7]} 39... Kf6 {[%clk 0:00:37.6]}
40. Ke3 {[%clk 0:00:23.5]} 40... Rh1 {[%clk 0:00:31.9]} 41. Kf4 {[%clk
0:00:21.5]} 41... Bc4 {[%clk 0:00:26.6]} 42. g5+ {[%clk 0:00:21.7]} 42... Kf7
{[%clk 0:00:21.4]} 43. Rd2 {[%clk 0:00:21.8]} 43... Rh4+ {[%clk 0:00:20.1]} 44.
Kg3 {[%clk 0:00:22]} 44... Rh1 {[%clk 0:00:19.4]} 45. Ne5+ {[%clk 0:00:22.4]}
45... Ke6 {[%clk 0:00:19.6]} 46. Nxc4 {[%clk 0:00:22.5]} 46... bxc4 {[%clk
0:00:20.5]} 47. Rd4 {[%clk 0:00:23.1]} 47... Kf5 {[%clk 0:00:19.9]} 48. Rxc4
{[%clk 0:00:22.4]} 48... Rg1+ {[%clk 0:00:20.2]} 49. Kf2 {[%clk 0:00:22.6]}
49... Rb1 {[%clk 0:00:20.1]} 50. Rxa4 {[%clk 0:00:20.9]} 50... Rxb2+ {[%clk
0:00:20.4]} 51. Ke3 {[%clk 0:00:20.7]} 51... Kxg5 {[%clk 0:00:20.5]} 52. Ra5+
{[%clk 0:00:20.1]} 52... Kf6 {[%clk 0:00:20.7]} 53. a4 {[%clk 0:00:19.2]} 53...
Rc2 {[%clk 0:00:20.9]} 54. Kd4 {[%clk 0:00:19.2]} 54... Rf2 {[%clk 0:00:21]} 55.
Kc4 {[%clk 0:00:13.6]} 55... Rxf3 {[%clk 0:00:20.9]} 56. Rd5 {[%clk 0:00:14.1]}
56... Ke6 {[%clk 0:00:20.3]} 57. Rd4 {[%clk 0:00:14.4]} 57... Rf1 {[%clk
0:00:20.1]} 58. a5 {[%clk 0:00:14.5]} 58... Rb1 {[%clk 0:00:19.3]} 59. Kc5
{[%clk 0:00:14.7]} 59... Rb3 {[%clk 0:00:17.9]} 60. c4 {[%clk 0:00:14.6]} 60...
Ke5 {[%clk 0:00:17.1]} 61. Rd5+ {[%clk 0:00:14.7]} 61... Ke6 {[%clk 0:00:17.3]}
62. a6 {[%clk 0:00:15.2]} 62... Ra3 {[%clk 0:00:16.4]} 63. Kb6 {[%clk 0:00:15]}
63... Rb3+ {[%clk 0:00:16.5]} 64. Rb5 {[%clk 0:00:15.5]} 64... Ra3 {[%clk
0:00:16.5]} 65. a7 {[%clk 0:00:16]} 65... Kd6 {[%clk 0:00:16.1]} 66. Ra5 {[%clk
0:00:16.5]} 66... Rb3+ {[%clk 0:00:16.4]} 67. Ka6 {[%clk 0:00:16.8]} 67... Kc7
{[%clk 0:00:13.8]} 68. a8=Q {[%clk 0:00:14.9]} 68... Rb6+ {[%clk 0:00:13.7]} 69.
Ka7 {[%clk 0:00:15.3]} 1-0